bitfinex/quotes_BTCUSD_20250714
["timestamp","ask_amount","ask_price","bid_price","bid_amount"]
[1752500475806,0.00215314,121490.0,121480.0,0.34]
[1752500476050,0.00215314,121490.0,121480.0,0.84629305]
[1752500476327,0.00215314,121490.0,121480.0,0.72594327]
[1752500476532,0.00215314,121490.0,121480.0,0.86166327]
[1752500476732,0.00215314,121490.0,121480.0,0.72594327]
[1752500476969,0.00215314,121490.0,121480.0,0.86166327]
[1752500477170,0.00215314,121490.0,121480.0,0.89266327]
[1752500477576,0.00215314,121490.0,121480.0,0.52209022]
[1752500478027,0.00215314,121490.0,121480.0,0.38637022]
[1752500478236,0.00215314,121490.0,121480.0,0.89266327]
[1752500478443,0.00215314,121490.0,121480.0,0.52209022]
[1752500478650,0.00215314,121490.0,121480.0,0.89266327]
[1752500478940,0.2144928,121520.0,121480.0,0.89266327]
[1752500479113,0.2763928,121520.0,121480.0,0.89466327]
[1752500479346,0.01645852,121510.0,121480.0,0.38837022]
[1752500479587,0.03,121500.0,121490.0,0.13568]
[1752500479818,0.20283896,121500.0,121490.0,0.01537022]
[1752500480053,0.64274386,121500.0,121490.0,0.01537022]
[1752500480278,0.46167371,121500.0,121490.0,0.15105022]
[1752500480509,0.09110066,121500.0,121490.0,0.01537022]
[1752500480752,0.62628337,121500.0,121490.0,0.01537022]
[1752500480968,0.25571032,121500.0,121490.0,0.01537022]
[1752500481186,0.2724866,121490.0,121480.0,0.002]
[1752500481397,0.63482866,121490.0,121480.0,0.01735962]
[1752500481624,0.09963348,121490.0,121480.0,0.01735962]
[1752500481852,0.26425608,121490.0,121480.0,0.01735962]
[1752500482079,0.09140209,121490.0,121480.0,0.01735962]
[1752500482303,0.09963288,121490.0,121480.0,0.01735962]
[1752500482779,0.11609479,121490.0,121480.0,0.01735962]
[1752500483036,0.28071732,121490.0,121480.0,0.01735962]
[1752500483264,0.62659869,121490.0,121480.0,0.01735962]
[1752500483699,0.45374475,121490.0,121480.0,0.01735962]
[1752500483916,0.63482899,121490.0,121480.0,0.01735962]
[1752500484145,0.26425594,121490.0,121480.0,0.01735962]
[1752500484361,0.76227834,121490.0,121480.0,0.01735962]
[1752500485427,0.62659834,121490.0,121480.0,0.01735962]
[1752500485597,0.76227834,121490.0,121480.0,0.01735962]
[1752500485858,0.25602529,121490.0,121480.0,0.01735962]
[1752500486318,0.62659834,121490.0,121480.0,0.01735962]
[1752500486762,0.76227834,121490.0,121480.0,0.01735962]
[1752500487810,0.83227834,121490.0,121480.0,0.01735962]
[1752500488220,0.69659834,121490.0,121480.0,0.01735962]
[1752500488815,0.83227834,121490.0,121480.0,0.01735962]
[1752500489572,0.69659834,121490.0,121480.0,0.002]
[1752500489770,0.83227834,121490.0,121480.0,0.0173623]
[1752500490181,0.69659834,121490.0,121480.0,0.0173623]
[1752500490380,0.83227834,121490.0,121480.0,0.0173623]
[1752500490815,0.69659834,121490.0,121480.0,0.0173623]
[1752500491035,0.83227834,121490.0,121480.0,0.0173623]
[1752500491245,0.69659834,121490.0,121480.0,0.0173623]
[1752500491455,0.83227834,121490.0,121480.0,0.0173623]
[1752500493237,1.17227834,121490.0,121480.0,0.0173623]
[1752500493476,1.19715981,121490.0,121480.0,0.0173623]
[1752500493707,1.03659834,121490.0,121480.0,0.0173623]
[1752500493927,1.06147981,121490.0,121480.0,0.0173623]
[1752500494202,1.17327834,121490.0,121480.0,0.0173623]
[1752500495916,0.66702529,121490.0,121480.0,0.0173623]
[1752500496141,1.03759834,121490.0,121480.0,0.0173623]
[1752500496344,1.17327834,121490.0,121480.0,0.0173623]
[1752500496777,0.66702529,121490.0,121480.0,0.0173623]
[1752500496984,0.80270529,121490.0,121480.0,0.0173623]
[1752500497355,1.17327834,121490.0,121480.0,0.0173623]
[1752500497777,1.03759834,121490.0,121480.0,0.0173623]
[1752500497968,1.17327834,121490.0,121480.0,0.0173623]
[1752500498404,1.17327834,121490.0,121480.0,0.002]
[1752500498603,1.17327834,121490.0,121480.0,0.01735989]
[1752500499028,1.03763834,121490.0,121480.0,0.01735929]
[1752500499267,1.17331834,121490.0,121480.0,0.01735929]
[1752500500461,1.65861834,121490.0,121480.0,0.01735929]
[1752500500709,1.52293834,121490.0,121480.0,0.01735929]
[1752500500938,0.18111418,121470.0,121460.0,0.002]
[1752500501157,1.39010113,121470.0,121460.0,0.00015314]
[1752500501381,0.2590147,121430.0,121420.0,0.002]
[1752500501606,0.62958775,121430.0,121420.0,0.00212619]
[1752500501862,0.78972179,121430.0,121420.0,0.00212619]
[1752500502057,0.76526775,121430.0,121420.0,0.00212619]
[1752500502265,0.65387936,121430.0,121420.0,0.00212619]
[1752500502689,0.78955936,121430.0,121420.0,0.00212619]
[1752500503121,0.65387936,121430.0,121420.0,0.00212619]
[1752500503330,0.75705936,121430.0,121420.0,0.00212619]
[1752500503563,0.2200059,121430.0,121420.0,0.00212619]
[1752500503780,0.0257755,121430.0,121420.0,0.00212619]
[1752500503990,0.13868,121430.0,121420.0,0.00212619]
[1752500504198,0.36470239,121440.0,121420.0,0.00212619]
[1752500504442,0.13868,121430.0,121420.0,0.03502619]
[1752500504651,0.003,121430.0,121420.0,0.06562619]
[1752500505078,0.003,121430.0,121420.0,1.04810824]
[1752500505287,0.70384915,121460.0,121430.0,0.0607]
[1752500505499,0.01646686,121450.0,121420.0,0.37222619]
[1752500505706,0.002,121430.0,121420.0,0.40232619]
[1752500506131,0.13568,121450.0,121420.0,0.40232619]
[1752500506132,0.01646665,121450.0,121430.0,0.0305]
[1752500506352,0.53095326,121450.0,121430.0,0.0305]
[1752500506565,0.55170357,121460.0,121430.0,0.0314]
[1752500506790,0.55993632,121460.0,121430.0,0.0314]
[1752500507023,0.3250577,121450.0,121420.0,0.40362619]
[1752500507261,0.68738351,121460.0,121420.0,0.37222619]
[1752500507472,0.55170351,121460.0,121430.0,0.0302]
[1752500507697,0.56625799,121450.0,121420.0,0.34212619]
[1752500507914,0.13568,121440.0,121430.0,0.03]
[1752500508153,0.16668744,121450.0,121430.0,0.03]
[1752500508372,0.02277408,121450.0,121430.0,0.03]
[1752500508579,0.16668737,121450.0,121430.0,0.03]
[1752500508790,0.1749208,121450.0,121430.0,0.03]
[1752500509010,0.59095836,121450.0,121420.0,0.40672619]
[1752500509225,0.40981392,121450.0,121420.0,0.37462619]
[1752500509431,0.54549385,121450.0,121420.0,0.37462619]
[1752500509615,0.54549385,121450.0,121420.0,0.37262619]
[1752500509877,0.1749208,121450.0,121420.0,0.40502619]
[1752500510020,0.18315436,121450.0,121420.0,0.40502619]
[1752500510235,0.02277408,121450.0,121420.0,0.40502619]
[1752500510435,0.01454085,121450.0,121430.0,0.0306]
[1752500512320,0.02277421,121450.0,121430.0,0.0306]
[1752500513281,0.02277414,121450.0,121430.0,0.0306]
[1752500513487,0.01454085,121450.0,121430.0,0.0326]
[1752500513888,0.40394848,121460.0,121430.0,0.0326]
[1752500514258,0.16665198,121470.0,121440.0,0.0309]
[1752500514494,0.15410408,121470.0,121440.0,0.0638]
[1752500514715,0.01846401,121470.0,121450.0,0.0331]
[1752500514954,0.01023194,121470.0,121450.0,0.0331]
[1752500515171,0.01846408,121470.0,121450.0,0.0331]
[1752500515412,0.00823268,121460.0,121440.0,0.0635]
[1752500515622,0.40350473,121460.0,121440.0,0.13564]
[1752500515828,0.00823329,121450.0,121430.0,0.0306]
[1752500516033,0.31676947,121460.0,121420.0,0.54066619]
[1752500516253,0.00823323,121450.0,121430.0,0.0306]
[1752500516467,0.3952732,121450.0,121420.0,0.54066619]
[1752500516679,0.57641807,121450.0,121420.0,0.54066619]
[1752500516886,0.38703964,121450.0,121420.0,0.40502619]
[1752500517075,0.40350677,121450.0,121420.0,0.54066619]
[1752500517359,0.56818358,121450.0,121420.0,0.54045068]
[1752500517560,0.01646686,121450.0,121420.0,0.40481068]
[1752500517760,0.02277414,121450.0,121420.0,0.54045068]
[1752500518091,0.01454085,121450.0,121420.0,0.40481068]
[1752500518301,0.01454085,121450.0,121430.0,0.0331]
[1752500519168,0.02277408,121450.0,121430.0,0.0331]
[1752500519384,0.02281408,121450.0,121430.0,0.0331]
[1752500519529,0.03104744,121450.0,121430.0,0.0331]
[1752500519739,0.02281408,121450.0,121430.0,0.0331]
[1752500520170,0.03928094,121450.0,121430.0,0.0331]
[1752500520385,0.03928094,121450.0,121420.0,0.54291068]
[1752500520628,0.02281408,121450.0,121420.0,0.54291068]
[1752500520806,0.01654085,121470.0,121440.0,0.0326]
[1752500521033,0.002,121470.0,121460.0,0.0326]
[1752500521799,0.002,121470.0,121460.0,0.43477305]
[1752500522022,0.002,121470.0,121460.0,0.91037305]
[1752500522268,0.002,121470.0,121460.0,0.5398]
[1752500522498,0.002,121470.0,121460.0,0.77477305]
[1752500522709,0.002,121470.0,121460.0,0.4042]
[1752500522925,0.002,121470.0,121460.0,0.5398]
[1752500523591,0.00205103,121470.0,121460.0,0.5082]
[1752500523814,0.37262408,121470.0,121460.0,0.1356]
[1752500524024,0.38085602,121470.0,121440.0,0.0627]
[1752500524233,0.38085595,121470.0,121450.0,0.1356]
[1752500524445,0.02674705,121470.0,121450.0,0.1356]
[1752500524704,0.02674705,121470.0,121440.0,0.0627]
[1752500524934,0.02674698,121470.0,121460.0,0.001]
[1752500525161,0.38908796,121470.0,121460.0,0.002]
[1752500525383,0.20593821,121470.0,121460.0,0.001]
[1752500525605,0.60087918,121470.0,121460.0,0.001]
[1752500526503,0.39539694,121470.0,121460.0,0.001]
[1752500526719,0.20593794,121470.0,121460.0,0.001]
[1752500526937,0.58474347,121470.0,121460.0,0.001]
[1752500527374,0.62987939,121470.0,121460.0,0.001]
[1752500527878,0.18114427,121450.0,121420.0,0.26234449]
[1752500528090,0.39527334,121450.0,121430.0,0.13556]
[1752500528302,0.89373897,121470.0,121430.0,0.07826302]
[1752500528518,0.00205103,121470.0,121440.0,0.0638]
[1752500528730,0.03405583,121470.0,121440.0,0.21472302]
[1752500528942,0.03305583,121470.0,121440.0,0.21472302]
[1752500529160,0.01659188,121470.0,121440.0,0.21472302]
[1752500529390,0.01659188,121470.0,121440.0,0.42026302]
[1752500529391,0.001,121450.0,121440.0,0.42026302]
[1752500529604,0.00205103,121470.0,121460.0,0.0325]
[1752500529791,0.00205103,121470.0,121460.0,0.18342208]
[1752500530343,0.00205103,121470.0,121460.0,0.16806]
[1752500530562,0.00205103,121470.0,121460.0,0.18342078]
[1752500531159,0.00305103,121470.0,121460.0,0.16806]
[1752500531385,0.00305103,121470.0,121460.0,0.30358]
[1752500531625,0.00405103,121470.0,121460.0,2.14862605]
[1752500531849,0.00405103,121470.0,121460.0,0.780937]
[1752500532313,0.00405103,121470.0,121460.0,0.67408]
[1752500532519,0.00205103,121470.0,121460.0,0.67408]
[1752500532928,0.00205103,121470.0,121460.0,0.67608]
[1752500534225,0.00205103,121470.0,121460.0,0.80202]
[1752500534434,0.01454085,121500.0,121470.0,0.3724]
[1752500534634,0.01454085,121500.0,121480.0,0.27104]
[1752500534857,0.01454085,121500.0,121480.0,0.28640002]
[1752500535270,0.17487657,121510.0,121480.0,0.31700002]
[1752500535442,0.01028023,121510.0,121480.0,0.31700002]
[1752500535645,0.01659192,121510.0,121480.0,0.31700002]
[1752500535857,0.02482108,121510.0,121480.0,0.34810002]
[1752500536020,0.001,121500.0,121480.0,0.34810002]
[1752500536242,0.58467821,121510.0,121480.0,0.31700002]
[1752500536487,0.58467882,121510.0,121480.0,0.28640002]
[1752500536721,0.58667882,121510.0,121480.0,0.27104]
[1752500536925,0.3788037,121490.0,121480.0,0.01534185]
[1752500537130,0.55988801,121490.0,121480.0,0.01534185]
[1752500537314,0.55164424,121500.0,121480.0,0.15082185]
[1752500537526,0.55164383,121500.0,121480.0,0.01534185]
[1752500537747,0.00822991,121500.0,121480.0,0.01534185]
[1752500537906,0.00822991,121500.0,121480.0,0.15082185]
[1752500538115,0.18929934,121500.0,121480.0,0.15082185]
[1752500538279,0.00922991,121500.0,121480.0,0.15082185]
[1752500538876,0.01745995,121500.0,121480.0,0.15082185]
[1752500539288,0.001,121500.0,121480.0,0.3859149]
[1752500539509,0.001,121500.0,121480.0,0.04734185]
[1752500539720,0.001,121500.0,121490.0,0.13548]
[1752500539966,0.001,121500.0,121490.0,0.01534185]
[1752500540177,0.001,121500.0,121490.0,0.04594185]
[1752500540395,0.001,121500.0,121490.0,0.18142185]
[1752500540610,0.001,121500.0,121490.0,0.01534185]
[1752500540830,0.001,121500.0,121490.0,0.72129268]
[1752500541054,0.001,121500.0,121490.0,0.7192349]
[1752500541287,0.001,121500.0,121490.0,1.0592349]
[1752500541506,0.00205107,121510.0,121490.0,1.6706519]
[1752500541712,0.00205107,121510.0,121500.0,0.43653066]
[1752500541946,0.00205107,121510.0,121500.0,0.4498149]
[1752500543454,0.00205107,121510.0,121500.0,0.4518149]
[1752500543673,0.00205107,121510.0,121500.0,0.4548149]
[1752500544319,0.00204,121530.0,121510.0,0.34]
[1752500544587,0.00204,121530.0,121520.0,0.27088]
[1752500544797,0.00204,121530.0,121520.0,0.28622185]
[1752500545462,0.00204,121530.0,121520.0,0.28619953]
[1752500545682,0.00204,121530.0,121520.0,1.02747258]
[1752500545899,0.00204,121530.0,121520.0,1.05847258]
[1752500546928,0.00204,121530.0,121520.0,1.65785058]
[1752500547762,0.00204,121530.0,121520.0,1.06384453]
[1752500547966,0.0004,121540.0,121530.0,0.4047]
[1752500548187,0.00044,121580.0,121560.0,0.0318]
[1752500548397,0.00095099,121580.0,121570.0,0.27076]
[1752500548625,0.00095099,121580.0,121570.0,0.65665258]
[1752500548900,0.00095099,121580.0,121570.0,0.31787953]
[1752500549097,0.00095099,121580.0,121570.0,0.68967953]
[1752500549314,0.00095099,121580.0,121570.0,1.06025258]
[1752500549951,0.00095099,121580.0,121570.0,1.06125258]
[1752500550163,0.00095099,121580.0,121570.0,1.06225258]
[1752500550381,0.00095099,121580.0,121570.0,1.06125258]
[1752500550796,0.00095099,121580.0,121570.0,1.06025258]
[1752500551851,0.00095099,121580.0,121570.0,1.06225258]
[1752500552271,0.00095099,121580.0,121570.0,1.06025258]
[1752500552479,0.00044,121600.0,121590.0,0.34]
[1752500552695,0.00059322,121600.0,121590.0,1.06003258]
[1752500553593,0.00059322,121600.0,121590.0,0.65895953]
[1752500554044,0.00059322,121600.0,121590.0,0.65885737]
[1752500554499,0.00059322,121600.0,121590.0,0.01521737]
[1752500555073,0.00059322,121600.0,121590.0,0.15049737]
[1752500555514,0.00059322,121600.0,121590.0,0.01521737]
[1752500555714,0.00055322,121600.0,121590.0,0.89367042]
[1752500555890,0.00055322,121600.0,121590.0,0.75839042]
[1752500556091,0.00055322,121600.0,121590.0,0.79129042]
[1752500556322,0.00055322,121600.0,121590.0,0.92657042]
[1752500556493,0.00055322,121600.0,121590.0,0.79129042]
[1752500556711,0.00055322,121600.0,121590.0,0.92653042]
[1752500557312,0.0004,121620.0,121600.0,0.064]
[1752500557582,0.0004,121620.0,121610.0,0.47524]
[1752500557754,0.0004,121620.0,121610.0,0.49045737]
[1752500558144,0.0004,121620.0,121610.0,0.35521737]
[1752500558387,0.0004,121620.0,121610.0,0.01521737]
[1752500559024,0.0004,121620.0,121610.0,0.28565737]
[1752500559225,0.0004,121620.0,121610.0,0.62565737]
[1752500560840,0.0004,121620.0,121610.0,1.02623042]
[1752500560842,0.0004,121620.0,121610.0,1.05813042]
[1752500561640,0.0004,121620.0,121610.0,1.54682242]
[1752500562102,0.0004,121620.0,121610.0,2.59439742]
[1752500562740,0.0004,121620.0,121610.0,2.57918005]
[1752500562972,0.0004,121620.0,121610.0,3.23082582]
[1752500563196,0.0004,121620.0,121610.0,3.21188905]
[1752500563409,0.0004,121620.0,121610.0,2.88744082]
[1752500563589,0.0004,121620.0,121610.0,3.07334691]
[1752500563827,0.0004,121620.0,121610.0,2.87223582]
[1752500564041,0.0004,121620.0,121610.0,2.66931882]
[1752500564268,0.0004,121620.0,121610.0,2.96024982]
[1752500564491,0.0004,121620.0,121610.0,2.69402082]
[1752500564703,0.0004,121620.0,121610.0,1.29833982]
[1752500565825,0.0004,121620.0,121610.0,3.47247467]
[1752500566041,0.0004,121620.0,121610.0,3.65338049]
[1752500566260,0.0004,121650.0,121630.0,0.02466394]
[1752500566484,0.0004,121650.0,121640.0,4.58804886]
[1752500566704,4e-05,121700.0,121660.0,0.0645]
[1752500566927,0.07301854,121700.0,121680.0,0.34]
[1752500567145,0.06559308,121700.0,121690.0,0.2702]
[1752500567329,0.06559308,121700.0,121690.0,0.28539477]
[1752500568267,0.03319308,121700.0,121690.0,0.28539477]
[1752500569624,0.06559308,121700.0,121690.0,0.28539477]
[1752500570086,0.00019308,121700.0,121690.0,0.28539477]
[1752500571379,0.00019308,121700.0,121690.0,0.2702]
[1752500571607,0.00019308,121700.0,121690.0,0.28538264]
[1752500573155,0.00019308,121700.0,121690.0,0.28638264]
[1752500573367,0.00019308,121700.0,121690.0,0.28838264]
[1752500573570,0.00019308,121700.0,121690.0,0.28738264]
[1752500574231,0.00019308,121700.0,121690.0,0.32018264]
[1752500574414,0.00019308,121700.0,121690.0,0.62818264]
[1752500574884,0.00019308,121700.0,121690.0,0.28818264]
[1752500575321,0.03169308,121700.0,121690.0,0.28818264]
[1752500575759,0.03169308,121700.0,121690.0,0.28618264]
[1752500575967,0.06299308,121700.0,121690.0,0.28618264]
[1752500576095,0.06299308,121700.0,121690.0,0.28610264]
[1752500576305,0.06299308,121700.0,121690.0,0.28810264]
[1752500576503,0.44810698,121700.0,121690.0,0.29010264]
[1752500576715,0.81868003,121700.0,121690.0,0.01718264]
[1752500576918,0.83511299,121700.0,121690.0,0.01918264]
[1752500577120,1.38945193,121700.0,121690.0,0.01718264]
[1752500577319,1.38945193,121700.0,121620.0,0.197]
[1752500577320,0.03,121640.0,121620.0,0.197]
[1752500577517,0.37057305,121630.0,121600.0,0.024651]
[1752500577772,0.02014535,121640.0,121600.0,0.024651]
[1752500577773,0.01914535,121640.0,121600.0,0.89522405]
[1752500577907,0.01914535,121640.0,121600.0,0.024651]
[1752500578129,0.37057305,121630.0,121580.0,0.0311]
[1752500578331,0.40347305,121630.0,121590.0,0.5]
[1752500578530,0.37057305,121620.0,121590.0,0.524654]
[1752500578823,0.37057305,121620.0,121600.0,0.13492]
[1752500579191,0.56393582,121630.0,121590.0,0.00015311]
[1752500579270,0.04544085,121620.0,121590.0,0.00015311]
[1752500579515,0.5222771,121610.0,121590.0,0.00015311]
[1752500579733,0.0309,121610.0,121590.0,0.13507311]
[1752500579953,0.0309,121610.0,121590.0,0.00115311]
[1752500580194,0.0309,121610.0,121590.0,0.00015311]
[1752500580893,0.56731795,121600.0,121590.0,0.00015311]
[1752500581110,0.04504085,121600.0,121590.0,0.00015311]
[1752500581764,0.59861795,121600.0,121590.0,0.00015311]
[1752500582210,0.86845795,121600.0,121590.0,0.00015311]
[1752500582426,0.87668116,121600.0,121590.0,0.00015311]
[1752500582639,0.89312797,121600.0,121590.0,0.00015311]
[1752500582846,0.88490443,121600.0,121590.0,0.00015311]
[1752500583066,0.60684109,121600.0,121590.0,0.00015311]
[1752500583280,0.59861795,121600.0,121590.0,0.00015311]
[1752500583498,0.07634085,121600.0,121590.0,0.00015311]
[1752500583774,0.04504085,121600.0,121590.0,0.00015311]
[1752500584061,0.59971795,121600.0,121590.0,0.00015311]
[1752500584314,0.73467795,121600.0,121590.0,0.00015311]
[1752500584795,0.61616436,121600.0,121590.0,0.00015311]
[1752500585006,0.92378172,121600.0,121590.0,0.00015311]
[1752500585232,0.78063885,121600.0,121590.0,0.00015311]
[1752500585456,0.83063885,121600.0,121590.0,0.00015311]
[1752500585718,0.96555885,121600.0,121590.0,0.00015311]
[1752500585936,0.59971795,121600.0,121590.0,0.00015311]
[1752500586155,0.60794116,121600.0,121590.0,0.00015311]
[1752500586375,1.1410849,121600.0,121590.0,0.00015311]
[1752500586588,1.31378186,121600.0,121590.0,0.00015311]
[1752500586810,1.17063892,121600.0,121590.0,0.00015311]
[1752500587527,1.35555892,121600.0,121590.0,0.00015311]
[1752500587758,0.56761795,121560.0,121520.0,0.221707]
[1752500587987,0.5530771,121540.0,121520.0,0.02517799]
[1752500588216,0.5847771,121540.0,121520.0,0.00051099]
[1752500588482,0.01454085,121550.0,121520.0,0.03331099]
[1752500588748,0.01454085,121560.0,121530.0,0.3420571]
[1752500589036,0.01454085,121560.0,121530.0,0.34]
[1752500589485,0.53681795,121540.0,121520.0,0.00151099]
[1752500589708,0.56931795,121540.0,121520.0,0.00151099]
[1752500589937,0.53681795,121530.0,121520.0,0.00051099]
[1752500590155,0.01454085,121530.0,121520.0,0.00051099]
[1752500590373,0.01354085,121530.0,121520.0,0.00051099]
[1752500590843,0.59891795,121530.0,121520.0,0.00051099]
[1752500591061,0.77994279,121530.0,121520.0,0.00051099]
[1752500591281,1.43982279,121530.0,121520.0,0.00051099]
[1752500593415,0.05488671,121510.0,121500.0,0.00215322]
[1752500593675,1.17871837,121510.0,121500.0,0.00215322]
[1752500593888,1.31367837,121510.0,121500.0,0.00215322]
[1752500594102,0.96412287,121510.0,121500.0,0.00215322]
[1752500594347,1.09908247,121510.0,121500.0,0.00215322]
[1752500594563,1.1155416,121510.0,121500.0,0.00215322]
[1752500594804,1.1951771,121510.0,121500.0,0.00215322]
[1752500595022,0.08538671,121510.0,121500.0,0.00215322]
[1752500595240,0.15810671,121510.0,121500.0,0.00215322]
[1752500595486,0.69642604,121510.0,121500.0,0.00215322]
[1752500595690,0.79120208,121510.0,121500.0,0.00215322]
[1752500595923,0.91789272,121510.0,121500.0,0.00215322]
[1752500596146,1.24966315,121510.0,121500.0,0.00215322]
[1752500596366,1.12635591,121510.0,121500.0,0.00215322]
[1752500596590,1.22635591,121510.0,121500.0,0.00215322]
[1752500596803,1.22335591,121510.0,121500.0,0.00215322]
[1752500597019,1.21935591,121510.0,121500.0,0.00215322]
[1752500597248,1.22335591,121510.0,121500.0,0.00215322]
[1752500597480,0.43125361,121510.0,121500.0,0.00215322]
[1752500597699,0.38744192,121510.0,121500.0,0.00215322]
[1752500597921,0.00861276,121510.0,121500.0,0.00215322]
[1752500598127,0.01961276,121510.0,121500.0,0.00215322]
[1752500598336,0.011,121510.0,121500.0,0.00215322]
[1752500598575,0.5332771,121510.0,121500.0,0.00215322]
[1752500598781,0.01383379,121510.0,121500.0,0.00215322]
[1752500599031,0.005,121510.0,121500.0,0.00215322]
[1752500599494,0.19743393,121560.0,121500.0,0.59063032]
[1752500599713,0.74440214,121550.0,121510.0,0.0329]
[1752500599928,0.00822713,121540.0,121510.0,0.0329]
[1752500600159,0.5222771,121530.0,121500.0,0.03505322]
[1752500600396,0.003,121510.0,121500.0,0.03505322]
[1752500600650,0.72564575,121550.0,121500.0,0.03505322]
[1752500600864,0.01454085,121530.0,121500.0,0.37505322]
[1752500601129,0.93901983,121560.0,121510.0,0.06495744]
[1752500601348,0.34851668,121560.0,121520.0,0.0322]
[1752500601571,0.15170252,121560.0,121520.0,0.0322]
[1752500601813,0.15992844,121560.0,121520.0,0.0647]
[1752500602046,0.01454085,121550.0,121520.0,0.0647]
[1752500602278,0.00851668,121560.0,121530.0,0.0328]
[1752500602492,0.01645088,121570.0,121530.0,0.0328]
[1752500602711,0.01454085,121560.0,121530.0,0.0328]
[1752500603157,0.54504373,121560.0,121530.0,0.0328]
[1752500603375,0.55327242,121540.0,121500.0,0.06975322]
[1752500603596,0.54504515,121540.0,121500.0,0.40975322]
[1752500603774,0.01454085,121540.0,121510.0,0.3705]
[1752500604655,0.01454085,121540.0,121510.0,0.9252771]
[1752500604869,0.01454085,121540.0,121510.0,0.063]
[1752500605088,0.01454085,121540.0,121510.0,0.26984]
[1752500605518,0.03922326,121540.0,121510.0,0.26984]
[1752500605760,0.03099559,121540.0,121510.0,0.26984]
[1752500606009,0.01454085,121540.0,121510.0,0.26984]
[1752500606277,0.02276812,121540.0,121510.0,0.26984]
[1752500606695,0.01454085,121540.0,121510.0,0.26984]
[1752500607163,0.03099525,121540.0,121510.0,0.26984]
[1752500607422,0.01454085,121540.0,121510.0,0.0316]
[1752500607882,0.02468058,121550.0,121520.0,0.0316]
[1752500607883,0.01454085,121550.0,121520.0,0.0316]
[1752500608337,0.00890087,121560.0,121530.0,0.0315]
[1752500608792,0.01454085,121560.0,121530.0,0.0315]
[1752500609211,0.03099254,121560.0,121530.0,0.0315]
[1752500609329,0.01454085,121560.0,121530.0,0.0315]
[1752500609557,0.32406156,121580.0,121540.0,0.0303]
[1752500609775,0.01645033,121570.0,121540.0,0.0303]
[1752500609999,0.01645033,121570.0,121540.0,0.16518]
[1752500610214,0.02467563,121570.0,121540.0,0.16518]
[1752500610432,0.032901,121570.0,121540.0,0.16518]
[1752500610652,0.03341095,121570.0,121540.0,0.16518]
[1752500610886,0.02518558,121570.0,121540.0,0.16518]
[1752500611119,0.02518558,121570.0,121540.0,0.19688]
[1752500611365,0.03341109,121570.0,121540.0,0.19688]
[1752500611535,0.02518558,121570.0,121540.0,0.19688]
[1752500611749,0.00050995,121570.0,121540.0,0.19688]
[1752500611944,0.00050995,121570.0,121550.0,0.0312]
[1752500612219,0.00050995,121570.0,121550.0,0.0641]
[1752500612422,0.00050995,121570.0,121550.0,0.19898]
[1752500612827,0.00250995,121570.0,121550.0,0.19894]
[1752500613042,0.00250995,121570.0,121550.0,0.0641]
[1752500613043,0.00050995,121570.0,121550.0,0.0641]
[1752500613249,0.00050995,121570.0,121560.0,0.033]
[1752500613469,0.00050995,121570.0,121560.0,0.16784]
[1752500613674,0.00050995,121570.0,121560.0,1.0606171]
[1752500613895,0.00050995,121570.0,121560.0,0.9257771]
[1752500614141,0.00050995,121570.0,121560.0,0.4035]
[1752500614368,0.00050995,121570.0,121560.0,0.13484]
[1752500614580,0.00050995,121570.0,121550.0,0.13484]
[1752500614772,0.00050995,121570.0,121550.0,0.16494]
[1752500614988,0.00150995,121570.0,121550.0,0.16494]
[1752500615142,0.00050995,121570.0,121550.0,0.0301]
[1752500615359,0.00050995,121570.0,121550.0,0.16494]
[1752500615538,0.00450995,121570.0,121550.0,0.0301]
[1752500615743,0.00050995,121570.0,121550.0,0.16494]
[1752500615938,0.00050995,121570.0,121550.0,0.0301]
[1752500616175,0.00050995,121570.0,121550.0,0.16494]
[1752500616769,0.01796022,121570.0,121550.0,0.16494]
[1752500616971,0.01645189,121560.0,121540.0,0.0311]
[1752500617190,0.16602492,121570.0,121520.0,0.19724]
[1752500617191,0.0082272,121540.0,121520.0,0.0303]
[1752500617432,0.0082272,121540.0,121500.0,0.002]
[1752500617433,0.5387321,121540.0,121510.0,0.0303]
[1752500617679,0.70328787,121540.0,121510.0,0.0303]
[1752500617903,0.03291218,121530.0,121500.0,0.0649]
[1752500618116,0.01645568,121530.0,121500.0,0.0649]
[1752500618345,0.01645568,121530.0,121520.0,0.003]
[1752500618346,0.18102484,121530.0,121520.0,0.003]
[1752500618577,0.01645717,121520.0,121500.0,0.1671]
[1752500618825,0.00822848,121520.0,121500.0,0.1671]
[1752500619058,0.00822848,121520.0,121500.0,0.0323]
[1752500619276,1.10135929,121550.0,121500.0,0.03245322]
[1752500619501,0.002,121530.0,121510.0,0.0325]
[1752500619705,0.002,121530.0,121510.0,0.1673]
[1752500619912,0.19746516,121540.0,121510.0,0.1673]
[1752500620337,0.00822787,121530.0,121510.0,0.0325]
[1752500620553,0.18923789,121540.0,121510.0,0.0325]
[1752500620554,0.0164546,121540.0,121510.0,0.0325]
[1752500620788,0.18923936,121540.0,121510.0,0.0325]
[1752500621005,0.0082272,121540.0,121510.0,0.06705744]
[1752500621220,0.01645447,121540.0,121520.0,0.0304]
[1752500621475,0.00822659,121550.0,121520.0,0.0304]
[1752500621693,0.04744815,121550.0,121520.0,0.0304]
[1752500621913,0.04744815,121550.0,121510.0,0.0325]
[1752500621914,0.025682,121540.0,121510.0,0.0325]
[1752500622112,0.0164544,121540.0,121520.0,0.13476]
[1752500622327,0.02468166,121540.0,121520.0,0.16696]
[1752500622539,0.01845433,121540.0,121520.0,0.16696]
[1752500622755,0.02468173,121540.0,121520.0,0.0322]
[1752500622971,0.01645433,121540.0,121510.0,0.0645]
[1752500623191,0.19123699,121540.0,121520.0,0.031]
[1752500623406,0.01845453,121540.0,121510.0,0.0635]
[1752500623614,0.0102272,121540.0,121520.0,0.031]
[1752500623830,0.0102272,121540.0,121520.0,0.16576]
[1752500624055,0.01022713,121540.0,121520.0,0.16576]
[1752500624270,0.002,121540.0,121520.0,0.16576]
[1752500624695,0.74822517,121570.0,121530.0,0.0316]
[1752500624907,0.00822523,121570.0,121540.0,0.16636]
[1752500625125,0.0164506,121570.0,121550.0,0.13476]
[1752500625388,0.0164504,121570.0,121550.0,0.13476]
[1752500625598,0.01454085,121570.0,121550.0,0.13476]
[1752500625825,0.50997402,121580.0,121540.0,0.4025]
[1752500626031,0.001,121570.0,121550.0,0.0321]
[1752500626252,0.001,121570.0,121560.0,0.06695659]
[1752500626463,0.003,121570.0,121560.0,0.20171659]
[1752500626692,0.003,121570.0,121560.0,0.7219371]
[1752500626912,0.003,121570.0,121560.0,1.0619371]